[Event "Early-Titled-Tuesday-Blitz-February-20-2024"]
[Site "Chess.com"]
[Date "2024.02.20"]
[Round "10"]
[White "Zallio"]
[Black "Matols"]
[Result "0-1"]
[WhiteElo "2166"]
[BlackElo "2355"]
[TimeControl "180+1"]
[EndTime "9:59:07 PST"]
[Termination "Matols won by checkmate"]

1. d4 {[%clk 0:02:54.2]} 1... d5 {[%clk 0:02:59.5]} 2. Nf3 {[%clk 0:02:54.4]}
2... Nf6 {[%clk 0:02:59]} 3. e3 {[%clk 0:02:54.9]} 3... c5 {[%clk 0:02:57.3]} 4.
Be2 {[%clk 0:02:54.2]} 4... cxd4 {[%clk 0:02:53.6]} 5. exd4 {[%clk 0:02:50.5]}
5... Nc6 {[%clk 0:02:53.7]} 6. O-O {[%clk 0:02:50.9]} 6... Bg4 {[%clk
0:02:53.6]} 7. b3 {[%clk 0:02:49.7]} 7... e6 {[%clk 0:02:53.1]} 8. Bb2 {[%clk
0:02:46.4]} 8... Bxf3 {[%clk 0:02:52.4]} 9. Bxf3 {[%clk 0:02:46.4]} 9... Bd6
{[%clk 0:02:51]} 10. c4 {[%clk 0:02:46]} 10... dxc4 {[%clk 0:02:49.6]} 11. bxc4
{[%clk 0:02:44.3]} 11... O-O {[%clk 0:02:48.9]} 12. Nc3 {[%clk 0:02:43]} 12...
Rc8 {[%clk 0:02:45.4]} 13. d5 {[%clk 0:02:31.6]} 13... Ne5 {[%clk 0:02:37.2]}
14. dxe6 {[%clk 0:02:30.5]} 14... Nxc4 {[%clk 0:02:35.1]} 15. exf7+ {[%clk
0:02:19.1]} 15... Rxf7 {[%clk 0:02:28.6]} 16. Qb3 {[%clk 0:02:08.5]} 16... Nxb2
{[%clk 0:02:25.1]} 17. Qxb2 {[%clk 0:02:08.5]} 17... Qc7 {[%clk 0:02:16.8]} 18.
Nd5 {[%clk 0:02:01.8]} 18... Bxh2+ {[%clk 0:02:07.5]} 19. Kh1 {[%clk 0:02:01.2]}
19... Qe5 {[%clk 0:02:06.5]} 20. Nxf6+ {[%clk 0:01:49]} 20... gxf6 {[%clk
0:01:35.5]} 21. Qxe5 {[%clk 0:01:46.7]} 21... Bxe5 {[%clk 0:01:36]} 22. Rab1
{[%clk 0:01:40.8]} 22... Kg7 {[%clk 0:01:15.2]} 23. Bxb7 {[%clk 0:01:35]} 23...
Rc2 {[%clk 0:01:00.6]} 24. a4 {[%clk 0:01:28.3]} 24... Rd7 {[%clk 0:00:52.5]}
25. Be4 {[%clk 0:01:20.6]} 25... Ra2 {[%clk 0:00:50.4]} 26. Bc6 {[%clk
0:01:08.7]} 26... Rc7 {[%clk 0:00:29.6]} 27. Bb5 {[%clk 0:00:53.6]} 27... Rcc2
{[%clk 0:00:24.7]} 28. Kg1 {[%clk 0:00:47.4]} 28... Bd4 {[%clk 0:00:23.9]} 29.
Bd3 {[%clk 0:00:39.8]} 29... Rxf2 {[%clk 0:00:22.4]} 30. Rxf2 {[%clk 0:00:40.2]}
30... Bxf2+ {[%clk 0:00:20]} 31. Kf1 {[%clk 0:00:40.6]} 31... Bd4 {[%clk
0:00:17]} 32. Rb7+ {[%clk 0:00:38.8]} 32... Kh6 {[%clk 0:00:16.1]} 33. Rxh7+
{[%clk 0:00:36.7]} 33... Kg5 {[%clk 0:00:16.7]} 34. g3 {[%clk 0:00:35.4]} 34...
Rf2+ {[%clk 0:00:14.9]} 35. Ke1 {[%clk 0:00:35.1]} 35... Rg2 {[%clk 0:00:14.8]}
36. Rg7+ {[%clk 0:00:32.9]} 36... Kh5 {[%clk 0:00:13.7]} 37. Be2+ {[%clk
0:00:27.7]} 37... Kh6 {[%clk 0:00:12.2]} 38. Rg4 {[%clk 0:00:27.8]} 38... Rg1+
{[%clk 0:00:11.5]} 39. Kd2 {[%clk 0:00:27.9]} 39... Be5 {[%clk 0:00:11]} 40.
Rh4+ {[%clk 0:00:25.8]} 40... Kg5 {[%clk 0:00:10.5]} 41. Rh5+ {[%clk 0:00:26.3]}
41... Kg6 {[%clk 0:00:10.3]} 42. g4 {[%clk 0:00:26.5]} 42... Bf4+ {[%clk
0:00:10.1]} 43. Kd3 {[%clk 0:00:25.6]} 43... Ra1 {[%clk 0:00:08.6]} 44. a5
{[%clk 0:00:25.9]} 44... Bg5 {[%clk 0:00:08.1]} 45. Rh8 {[%clk 0:00:24]} 45...
Rxa5 {[%clk 0:00:08.1]} 46. Kd4 {[%clk 0:00:19.5]} 46... Ra2 {[%clk 0:00:06.6]}
47. Bd3+ {[%clk 0:00:19.5]} 47... Kg7 {[%clk 0:00:07.1]} 48. Rh7+ {[%clk
0:00:19.8]} 48... Kg8 {[%clk 0:00:07]} 49. Rxa7 {[%clk 0:00:20.4]} 49... Rxa7
{[%clk 0:00:06.4]} 50. Bc4+ {[%clk 0:00:20.8]} 50... Kg7 {[%clk 0:00:05.7]} 51.
Ke4 {[%clk 0:00:21.2]} 51... Ra4 {[%clk 0:00:05.7]} 52. Kd5 {[%clk 0:00:20.8]}
52... Rxc4 {[%clk 0:00:05.8]} 53. Kxc4 {[%clk 0:00:21.7]} 53... Kf7 {[%clk
0:00:06.3]} 54. Kd3 {[%clk 0:00:22.6]} 54... Ke6 {[%clk 0:00:06.5]} 55. Ke2
{[%clk 0:00:23.5]} 55... Ke5 {[%clk 0:00:07]} 56. Kf3 {[%clk 0:00:24.4]} 56...
Kd4 {[%clk 0:00:07.4]} 57. Kg3 {[%clk 0:00:25.3]} 57... Ke4 {[%clk 0:00:08]} 58.
Kh3 {[%clk 0:00:26.2]} 58... Kf4 {[%clk 0:00:08.4]} 59. Kh2 {[%clk 0:00:25.5]}
59... Kxg4 {[%clk 0:00:09]} 60. Kg2 {[%clk 0:00:26.4]} 60... f5 {[%clk
0:00:09.1]} 61. Kh2 {[%clk 0:00:27.3]} 61... Kf3 {[%clk 0:00:09.2]} 62. Kg1
{[%clk 0:00:23.2]} 62... Ke2 {[%clk 0:00:09.7]} 63. Kg2 {[%clk 0:00:23.7]} 63...
f4 {[%clk 0:00:10.3]} 64. Kh3 {[%clk 0:00:24.4]} 64... f3 {[%clk 0:00:10.7]} 65.
Kg4 {[%clk 0:00:25.3]} 65... f2 {[%clk 0:00:11.3]} 66. Kg3 {[%clk 0:00:26.2]}
66... f1=Q {[%clk 0:00:11.9]} 67. Kh2 {[%clk 0:00:26.2]} 67... Bf4# {[%clk
0:00:11.2]} 0-1

[Event "Early-Titled-Tuesday-Blitz-February-20-2024"]
[Site "Chess.com"]
[Date "2024.02.20"]
[Round "10"]
[White "Ezov"]
[Black "simonachess"]
[Result "0-1"]
[WhiteElo "2168"]
[BlackElo "2298"]
[TimeControl "180+1"]
[EndTime "9:59:10 PST"]
[Termination "simonachess won on time"]

1. d4 {[%clk 0:02:44.4]} 1... Nf6 {[%clk 0:02:57.7]} 2. Nc3 {[%clk 0:02:42]}
2... d5 {[%clk 0:02:56.8]} 3. Bf4 {[%clk 0:02:41.2]} 3... g6 {[%clk 0:02:52.3]}
4. h4 {[%clk 0:02:40.5]} 4... h6 {[%clk 0:02:52.1]} 5. Qd2 {[%clk 0:02:38.5]}
5... Bg7 {[%clk 0:02:52.1]} 6. O-O-O {[%clk 0:02:37.7]} 6... Be6 {[%clk
0:02:39.2]} 7. f3 {[%clk 0:02:33.7]} 7... Nbd7 {[%clk 0:02:22.7]} 8. e4 {[%clk
0:02:32.2]} 8... Nb6 {[%clk 0:02:17.7]} 9. e5 {[%clk 0:02:30.4]} 9... Nfd7
{[%clk 0:02:14.1]} 10. h5 {[%clk 0:02:17.5]} 10... g5 {[%clk 0:02:09.2]} 11. Be3
{[%clk 0:02:16.9]} 11... c6 {[%clk 0:02:03.3]} 12. f4 {[%clk 0:02:15.3]} 12...
gxf4 {[%clk 0:02:01.6]} 13. Bxf4 {[%clk 0:02:13.1]} 13... Qc7 {[%clk 0:02:01.4]}
14. Qf2 {[%clk 0:01:51.9]} 14... O-O-O {[%clk 0:01:58.2]} 15. Bd3 {[%clk
0:01:48.9]} 15... a6 {[%clk 0:01:41.9]} 16. Qg3 {[%clk 0:01:47.9]} 16... Bf8
{[%clk 0:01:32.5]} 17. Nf3 {[%clk 0:01:46.9]} 17... c5 {[%clk 0:01:32.2]} 18.
Rhe1 {[%clk 0:01:33.8]} 18... c4 {[%clk 0:01:25.2]} 19. Bf1 {[%clk 0:01:32.6]}
19... Qc6 {[%clk 0:01:17.7]} 20. Qh4 {[%clk 0:00:57.3]} 20... Na4 {[%clk
0:01:15.7]} 21. Bd2 {[%clk 0:00:51.9]} 21... Nxc3 {[%clk 0:01:13.8]} 22. Bxc3
{[%clk 0:00:52.8]} 22... Nb6 {[%clk 0:01:11.6]} 23. Bb4 {[%clk 0:00:46]} 23...
Qd7 {[%clk 0:00:59.4]} 24. Nh2 {[%clk 0:00:33.6]} 24... Bf5 {[%clk 0:00:57.6]}
25. g4 {[%clk 0:00:30.8]} 25... Be4 {[%clk 0:00:55.3]} 26. Qg3 {[%clk
0:00:26.7]} 26... e6 {[%clk 0:00:55.4]} 27. Bxf8 {[%clk 0:00:25.1]} 27... Rhxf8
{[%clk 0:00:55.2]} 28. Bg2 {[%clk 0:00:26]} 28... Bh7 {[%clk 0:00:53.4]} 29. g5
{[%clk 0:00:23.2]} 29... Qa4 {[%clk 0:00:53.2]} 30. Qc3 {[%clk 0:00:19.7]} 30...
Qxa2 {[%clk 0:00:51.8]} 31. Kd2 {[%clk 0:00:19]} 31... Rg8 {[%clk 0:00:50.1]}
32. g6 {[%clk 0:00:16.6]} 32... Qa4 {[%clk 0:00:45]} 33. Bh3 {[%clk 0:00:16]}
33... Qd7 {[%clk 0:00:38.6]} 34. gxh7 {[%clk 0:00:15.2]} 34... Rh8 {[%clk
0:00:36.3]} 35. Ng4 {[%clk 0:00:12.8]} 35... Na4 {[%clk 0:00:27.4]} 36. Nf6
{[%clk 0:00:13.7]} 36... Nxc3 {[%clk 0:00:27.4]} 37. Nxd7 {[%clk 0:00:13.1]}
37... Ne4+ {[%clk 0:00:27.9]} 38. Rxe4 {[%clk 0:00:12]} 38... dxe4 {[%clk
0:00:28.8]} 39. Nf6 {[%clk 0:00:12.1]} 39... Rxd4+ {[%clk 0:00:23.8]} 40. Ke2
{[%clk 0:00:12.1]} 40... Rxd1 {[%clk 0:00:15.9]} 41. Kxd1 {[%clk 0:00:13]} 41...
b5 {[%clk 0:00:16.6]} 42. Ke2 {[%clk 0:00:12.7]} 42... a5 {[%clk 0:00:17.2]} 43.
Ke3 {[%clk 0:00:12.6]} 43... Kc7 {[%clk 0:00:17.7]} 44. Kxe4 {[%clk 0:00:12.8]}
44... Kb6 {[%clk 0:00:18.4]} 45. Kd4 {[%clk 0:00:12.8]} 45... Rd8+ {[%clk
0:00:18.2]} 46. Kc3 {[%clk 0:00:12.5]} 46... Rh8 {[%clk 0:00:18.4]} 47. Bg2
{[%clk 0:00:11.9]} 47... Kc5 {[%clk 0:00:18.7]} 48. b3 {[%clk 0:00:09.3]} 48...
b4+ {[%clk 0:00:19]} 49. Kb2 {[%clk 0:00:09.2]} 49... c3+ {[%clk 0:00:17.7]} 50.
Kc1 {[%clk 0:00:09.2]} 50... Kd4 {[%clk 0:00:18.4]} 51. Nd7 {[%clk 0:00:08.4]}
51... Rxh7 {[%clk 0:00:17.7]} 52. Nb6 {[%clk 0:00:07.5]} 52... Rg7 {[%clk
0:00:17.6]} 53. Bf3 {[%clk 0:00:05.4]} 53... Rg1+ {[%clk 0:00:17.6]} 54. Bd1
{[%clk 0:00:05.7]} 54... Kxe5 {[%clk 0:00:17.1]} 55. Nc4+ {[%clk 0:00:05.7]}
55... Kd4 {[%clk 0:00:17]} 56. Nxa5 {[%clk 0:00:06.6]} 56... Kc5 {[%clk
0:00:15.1]} 57. Nb7+ {[%clk 0:00:05.4]} 57... Kd5 {[%clk 0:00:14.2]} 58. Nd8
{[%clk 0:00:04.4]} 58... f5 {[%clk 0:00:14.6]} 59. Nf7 {[%clk 0:00:01.8]} 59...
f4 {[%clk 0:00:15.1]} 0-1

[Event "Early-Titled-Tuesday-Blitz-February-20-2024"]
[Site "Chess.com"]
[Date "2024.02.20"]
[Round "10"]
[White "A-Fier"]
[Black "Jospem"]
[Result "0-1"]
[WhiteElo "2852"]
[BlackElo "3092"]
[TimeControl "180+1"]
[EndTime "9:59:11 PST"]
[Termination "Jospem won by resignation"]

1. e4 {[%clk 0:03:00.9]} 1... c5 {[%clk 0:02:58]} 2. Nf3 {[%clk 0:03:01.1]} 2...
d6 {[%clk 0:02:58.7]} 3. d4 {[%clk 0:03:01.6]} 3... cxd4 {[%clk 0:02:59.6]} 4.
Nxd4 {[%clk 0:03:02.2]} 4... a6 {[%clk 0:03:00.5]} 5. Nc3 {[%clk 0:03:02.3]}
5... e6 {[%clk 0:03:00.9]} 6. Be3 {[%clk 0:03:01.7]} 6... b5 {[%clk 0:03:01.1]}
7. f3 {[%clk 0:03:02.1]} 7... h5 {[%clk 0:03:01.3]} 8. Qd2 {[%clk 0:03:02]} 8...
Nf6 {[%clk 0:03:01]} 9. O-O-O {[%clk 0:02:59]} 9... Nbd7 {[%clk 0:03:00.6]} 10.
Bd3 {[%clk 0:02:58.7]} 10... Bb7 {[%clk 0:03:00.6]} 11. a3 {[%clk 0:02:58.9]}
11... Rc8 {[%clk 0:03:00]} 12. Kb1 {[%clk 0:02:58.9]} 12... Be7 {[%clk
0:02:56.5]} 13. h3 {[%clk 0:02:59.2]} 13... h4 {[%clk 0:02:55.8]} 14. Rhe1
{[%clk 0:02:53.8]} 14... Ne5 {[%clk 0:02:55.9]} 15. f4 {[%clk 0:02:49.4]} 15...
Nxd3 {[%clk 0:02:50.9]} 16. cxd3 {[%clk 0:02:50.3]} 16... Nd7 {[%clk 0:02:42.3]}
17. Nf3 {[%clk 0:02:45.6]} 17... Nc5 {[%clk 0:02:41.6]} 18. f5 {[%clk
0:02:23.9]} 18... exf5 {[%clk 0:02:18.6]} 19. exf5 {[%clk 0:02:20.1]} 19... O-O
{[%clk 0:02:18.7]} 20. Qf2 {[%clk 0:01:50]} 20... Bf6 {[%clk 0:02:07.9]} 21. Bd4
{[%clk 0:01:50.1]} 21... a5 {[%clk 0:01:58]} 22. Bxf6 {[%clk 0:01:09.8]} 22...
Qxf6 {[%clk 0:01:58.9]} 23. Qxh4 {[%clk 0:01:10.1]} 23... Qxf5 {[%clk
0:01:56.7]} 24. Nd4 {[%clk 0:01:10.4]} 24... Qg6 {[%clk 0:01:53.7]} 25. Re3
{[%clk 0:01:06.1]} 25... b4 {[%clk 0:01:47.6]} 26. Rg3 {[%clk 0:01:04.1]} 26...
Qh7 {[%clk 0:01:47.2]} 27. Qxh7+ {[%clk 0:01:00.5]} 27... Kxh7 {[%clk
0:01:48.1]} 28. axb4 {[%clk 0:01:00]} 28... axb4 {[%clk 0:01:49]} 29. Ncb5
{[%clk 0:01:00.5]} 29... Ba6 {[%clk 0:01:38]} 30. Nxd6 {[%clk 0:00:44.1]} 30...
Rcd8 {[%clk 0:01:35]} 31. N4b5 {[%clk 0:00:44.5]} 31... f5 {[%clk 0:00:41.7]}
32. d4 {[%clk 0:00:44.4]} 32... Ne4 {[%clk 0:00:42.2]} 33. Nxe4 {[%clk 0:00:36]}
33... fxe4 {[%clk 0:00:43.1]} 34. Nc7 {[%clk 0:00:36.7]} 34... Bc4 {[%clk
0:00:39.4]} 35. d5 {[%clk 0:00:34.4]} 35... Rf6 {[%clk 0:00:30.6]} 36. d6 {[%clk
0:00:22.7]} 36... Bd3+ {[%clk 0:00:26]} 37. Rgxd3 {[%clk 0:00:17.7]} 37... exd3
{[%clk 0:00:26.9]} 38. Nd5 {[%clk 0:00:15.1]} 38... Rfxd6 {[%clk 0:00:23.7]} 39.
Nxb4 {[%clk 0:00:15.7]} 39... d2 {[%clk 0:00:21.7]} 40. Kc2 {[%clk 0:00:16.1]}
40... Rd4 {[%clk 0:00:22.1]} 41. Na2 {[%clk 0:00:16.2]} 41... Rf4 {[%clk
0:00:21.2]} 42. Nc3 {[%clk 0:00:13.7]} 42... Rf2 {[%clk 0:00:20.7]} 43. g4
{[%clk 0:00:14.3]} 43... Rh2 {[%clk 0:00:20.6]} 44. Ne4 {[%clk 0:00:13.8]} 44...
Kg6 {[%clk 0:00:18.1]} 45. Rxd2 {[%clk 0:00:08.2]} 45... Rdxd2+ {[%clk 0:00:18]}
46. Nxd2 {[%clk 0:00:09.1]} 46... Rxh3 {[%clk 0:00:18.3]} 47. b4 {[%clk
0:00:10]} 47... Kg5 {[%clk 0:00:17.4]} 48. b5 {[%clk 0:00:10.4]} 48... Kxg4
{[%clk 0:00:17.5]} 49. Nc4 {[%clk 0:00:10.2]} 49... Rh8 {[%clk 0:00:15.9]} 50.
Kd3 {[%clk 0:00:10]} 50... Kf4 {[%clk 0:00:15.2]} 51. b6 {[%clk 0:00:09.2]}
51... Rb8 {[%clk 0:00:14.7]} 52. Kd4 {[%clk 0:00:09.7]} 52... g5 {[%clk
0:00:15.1]} 53. Kc5 {[%clk 0:00:10]} 53... g4 {[%clk 0:00:15.8]} 54. Nb2 {[%clk
0:00:08.3]} 54... Ke3 {[%clk 0:00:10.5]} 55. Nd1+ {[%clk 0:00:07]} 55... Kf3
{[%clk 0:00:10.7]} 56. Nb2 {[%clk 0:00:06.2]} 56... g3 {[%clk 0:00:11]} 57. Nd3
{[%clk 0:00:06.8]} 57... Re8 {[%clk 0:00:09.5]} 58. b7 {[%clk 0:00:05.9]} 58...
g2 {[%clk 0:00:09.6]} 59. Ne1+ {[%clk 0:00:06]} 59... Rxe1 {[%clk 0:00:08.5]}
60. b8=Q {[%clk 0:00:06.5]} 60... g1=Q+ {[%clk 0:00:09.1]} 61. Kd6 {[%clk
0:00:07.1]} 61... Qg3+ {[%clk 0:00:09]} 0-1

[Event "Early-Titled-Tuesday-Blitz-February-20-2024"]
[Site "Chess.com"]
[Date "2024.02.20"]
[Round "10"]
[White "InitiatingASC"]
[Black "Ariadna_Atreides"]
[Result "0-1"]
[WhiteElo "2387"]
[BlackElo "2205"]
[TimeControl "180+1"]
[EndTime "9:59:11 PST"]
[Termination "Ariadna_Atreides won by resignation"]

1. d4 {[%clk 0:03:00.9]} 1... Nf6 {[%clk 0:02:59.6]} 2. c4 {[%clk 0:02:59.9]}
2... e6 {[%clk 0:03:00]} 3. Nc3 {[%clk 0:02:54.1]} 3... Bb4 {[%clk 0:03:00.4]}
4. e3 {[%clk 0:02:50.4]} 4... c5 {[%clk 0:02:57.1]} 5. Bd3 {[%clk 0:02:49.5]}
5... cxd4 {[%clk 0:02:56.8]} 6. exd4 {[%clk 0:02:49.4]} 6... d5 {[%clk 0:02:55]}
7. Ne2 {[%clk 0:02:48.9]} 7... dxc4 {[%clk 0:02:51.2]} 8. Bxc4 {[%clk
0:02:49.3]} 8... O-O {[%clk 0:02:48.1]} 9. O-O {[%clk 0:02:43]} 9... a6 {[%clk
0:02:47.1]} 10. Bg5 {[%clk 0:02:42.4]} 10... b5 {[%clk 0:02:45.7]} 11. Bb3
{[%clk 0:02:42.7]} 11... Bb7 {[%clk 0:02:44.5]} 12. Qd3 {[%clk 0:02:42.4]} 12...
h6 {[%clk 0:02:36.7]} 13. Bh4 {[%clk 0:02:34.7]} 13... Be7 {[%clk 0:02:36.5]}
14. Bc2 {[%clk 0:02:33.8]} 14... Nbd7 {[%clk 0:02:31.5]} 15. d5 {[%clk
0:02:21.9]} 15... Nc5 {[%clk 0:01:50.4]} 16. Qg3 {[%clk 0:02:02.3]} 16... Nxd5
{[%clk 0:01:43.7]} 17. Bxe7 {[%clk 0:01:55.9]} 17... Qxe7 {[%clk 0:01:39.6]} 18.
Rfe1 {[%clk 0:01:33.1]} 18... Nxc3 {[%clk 0:01:35]} 19. Nxc3 {[%clk 0:01:31.5]}
19... b4 {[%clk 0:01:35.2]} 20. Na4 {[%clk 0:01:28.3]} 20... Nxa4 {[%clk
0:01:33.9]} 21. Qd3 {[%clk 0:01:28.4]} 21... g6 {[%clk 0:01:16.6]} 22. Bxa4
{[%clk 0:01:28.6]} 22... Qg5 {[%clk 0:01:10.8]} 23. f3 {[%clk 0:01:19.2]} 23...
Rfd8 {[%clk 0:01:08.7]} 24. Qe3 {[%clk 0:01:11.8]} 24... Qxe3+ {[%clk
0:01:05.9]} 25. Rxe3 {[%clk 0:01:12]} 25... Rd2 {[%clk 0:01:05.6]} 26. Rb1
{[%clk 0:01:01.8]} 26... Rc8 {[%clk 0:01:03.5]} 27. a3 {[%clk 0:01:00.7]} 27...
a5 {[%clk 0:01:01.2]} 28. axb4 {[%clk 0:00:59.2]} 28... axb4 {[%clk 0:01:00.9]}
29. Bb5 {[%clk 0:00:47.6]} 29... Bd5 {[%clk 0:00:57.4]} 30. Re2 {[%clk
0:00:42.9]} 30... Rcc2 {[%clk 0:00:56.1]} 31. Rxd2 {[%clk 0:00:43]} 31... Rxd2
{[%clk 0:00:56.7]} 32. Bf1 {[%clk 0:00:41.3]} 32... Ba2 {[%clk 0:00:53.9]} 33.
Rc1 {[%clk 0:00:33.8]} 33... Rxb2 {[%clk 0:00:54.2]} 34. Rc8+ {[%clk 0:00:33.1]}
34... Kg7 {[%clk 0:00:53.3]} 35. Rb8 {[%clk 0:00:33.5]} 35... Rb1 {[%clk
0:00:50.5]} 36. Kf2 {[%clk 0:00:32.1]} 36... Bd5 {[%clk 0:00:47.8]} 37. Bd3
{[%clk 0:00:30.7]} 37... Rb2+ {[%clk 0:00:48]} 38. Kg3 {[%clk 0:00:31.1]} 38...
b3 {[%clk 0:00:45.7]} 39. Be4 {[%clk 0:00:23.2]} 39... Bxe4 {[%clk 0:00:41.1]}
40. fxe4 {[%clk 0:00:23.5]} 40... Kf6 {[%clk 0:00:40]} 41. Rb7 {[%clk 0:00:22]}
41... Rb1 {[%clk 0:00:39.2]} 42. e5+ {[%clk 0:00:21.7]} 42... Kxe5 {[%clk
0:00:36.4]} 43. Rxf7 {[%clk 0:00:21.2]} 43... b2 {[%clk 0:00:33.6]} 44. Rb7
{[%clk 0:00:21]} 44... Kd4 {[%clk 0:00:32]} 45. Rb4+ {[%clk 0:00:19.8]} 45...
Kc3 {[%clk 0:00:31.4]} 46. Rb8 {[%clk 0:00:18.2]} 46... Rd1 {[%clk 0:00:25.6]}
47. Rc8+ {[%clk 0:00:18.4]} 47... Kb3 {[%clk 0:00:25]} 48. Rb8+ {[%clk
0:00:18.9]} 48... Kc2 {[%clk 0:00:22.7]} 49. Rc8+ {[%clk 0:00:19.2]} 49... Kd2
{[%clk 0:00:20.6]} 50. Rd8+ {[%clk 0:00:18.5]} 50... Ke1 {[%clk 0:00:20.5]} 51.
Re8 {[%clk 0:00:18.2]} 51... b1=Q {[%clk 0:00:20]} 52. Rxe6+ {[%clk 0:00:19]}
52... Kf1 {[%clk 0:00:19.4]} 53. Rf6+ {[%clk 0:00:19]} 53... Kg1 {[%clk
0:00:18.8]} 54. Rf3 {[%clk 0:00:18]} 54... Rd3 {[%clk 0:00:18]} 55. Kh3 {[%clk
0:00:17.1]} 55... Rxf3+ {[%clk 0:00:17.9]} 56. gxf3 {[%clk 0:00:18]} 56... Qf5+
{[%clk 0:00:17.2]} 57. Kg3 {[%clk 0:00:18.2]} 57... Qg5+ {[%clk 0:00:17]} 58.
Kh3 {[%clk 0:00:18.9]} 58... Qg2+ {[%clk 0:00:16.9]} 59. Kh4 {[%clk 0:00:19.4]}
59... Qxh2+ {[%clk 0:00:17]} 60. Kg4 {[%clk 0:00:20.3]} 60... h5+ {[%clk
0:00:15.8]} 61. Kg5 {[%clk 0:00:20.7]} 61... Qg3+ {[%clk 0:00:16]} 62. Kh6
{[%clk 0:00:20.2]} 62... h4 {[%clk 0:00:14.5]} 63. f4 {[%clk 0:00:19.8]} 63...
Qxf4+ {[%clk 0:00:14.1]} 64. Kg7 {[%clk 0:00:19.3]} 64... h3 {[%clk 0:00:14]}
65. Kg8 {[%clk 0:00:20.2]} 65... g5 {[%clk 0:00:13.7]} 66. Kg7 {[%clk
0:00:21.1]} 66... g4 {[%clk 0:00:14.1]} 67. Kh7 {[%clk 0:00:20.9]} 67... g3
{[%clk 0:00:14.6]} 68. Kg6 {[%clk 0:00:21.8]} 68... g2 {[%clk 0:00:14.2]} 69.
Kh5 {[%clk 0:00:22.7]} 69... h2 {[%clk 0:00:13.4]} 70. Kg6 {[%clk 0:00:22.2]}
70... Qg4+ {[%clk 0:00:11.2]} 71. Kf6 {[%clk 0:00:21]} 71... h1=Q {[%clk
0:00:11.3]} 72. Ke5 {[%clk 0:00:21.9]} 72... Qhh5+ {[%clk 0:00:11]} 0-1

[Event "Early-Titled-Tuesday-Blitz-February-20-2024"]
[Site "Chess.com"]
[Date "2024.02.20"]
[Round "10"]
[White "Abund"]
[Black "AttackSparrow"]
[Result "1-0"]
[WhiteElo "2791"]
[BlackElo "2632"]
[TimeControl "180+1"]
[EndTime "9:59:12 PST"]
[Termination "Abund won on time"]

1. e4 {[%clk 0:03:00.9]} 1... e5 {[%clk 0:03:00.2]} 2. Nf3 {[%clk 0:03:01.1]}
2... Nc6 {[%clk 0:03:00.7]} 3. Bc4 {[%clk 0:03:00]} 3... Nf6 {[%clk 0:03:00.8]}
4. d3 {[%clk 0:02:59.6]} 4... Be7 {[%clk 0:03:00.7]} 5. O-O {[%clk 0:02:59]}
5... O-O {[%clk 0:03:00.8]} 6. Re1 {[%clk 0:02:58.3]} 6... d6 {[%clk 0:03:00.8]}
7. a4 {[%clk 0:02:58]} 7... Na5 {[%clk 0:03:01.3]} 8. Ba2 {[%clk 0:02:58.1]}
8... c5 {[%clk 0:03:01.9]} 9. h3 {[%clk 0:02:55.3]} 9... Nc6 {[%clk 0:03:02.1]}
10. c3 {[%clk 0:02:54.6]} 10... a6 {[%clk 0:03:02.5]} 11. Nbd2 {[%clk
0:02:52.2]} 11... h6 {[%clk 0:03:02.6]} 12. Nf1 {[%clk 0:02:49.5]} 12... Re8
{[%clk 0:03:01.3]} 13. Ng3 {[%clk 0:02:42.6]} 13... Bf8 {[%clk 0:03:01.1]} 14.
Be3 {[%clk 0:02:41.8]} 14... d5 {[%clk 0:02:55.2]} 15. Qe2 {[%clk 0:02:33.2]}
15... Be6 {[%clk 0:02:50.3]} 16. Red1 {[%clk 0:02:21.4]} 16... Qc7 {[%clk
0:02:32.9]} 17. Nh4 {[%clk 0:02:12.3]} 17... d4 {[%clk 0:02:07]} 18. Bd2 {[%clk
0:02:07.2]} 18... g6 {[%clk 0:02:07.5]} 19. Bxe6 {[%clk 0:02:01.3]} 19... Rxe6
{[%clk 0:02:08.4]} 20. Rf1 {[%clk 0:01:54.3]} 20... dxc3 {[%clk 0:01:55.7]} 21.
bxc3 {[%clk 0:01:52.3]} 21... Rd8 {[%clk 0:01:56.6]} 22. Be3 {[%clk 0:01:51.1]}
22... c4 {[%clk 0:01:28.5]} 23. dxc4 {[%clk 0:01:30.5]} 23... Na5 {[%clk
0:01:25.4]} 24. c5 {[%clk 0:01:28.5]} 24... Nd7 {[%clk 0:01:20]} 25. Qg4 {[%clk
0:01:09.6]} 25... Kh7 {[%clk 0:01:13]} 26. Nf3 {[%clk 0:01:03.3]} 26... Nc4
{[%clk 0:00:45.8]} 27. Qh4 {[%clk 0:00:56.9]} 27... f6 {[%clk 0:00:26.8]} 28.
Nh2 {[%clk 0:00:40.6]} 28... Nxe3 {[%clk 0:00:24.8]} 29. fxe3 {[%clk 0:00:41.5]}
29... Qxc5 {[%clk 0:00:17.1]} 30. Ng4 {[%clk 0:00:40]} 30... Bg7 {[%clk
0:00:15.9]} 31. Rad1 {[%clk 0:00:36.7]} 31... Qc7 {[%clk 0:00:12.9]} 32. Rd5
{[%clk 0:00:32.6]} 32... Rf8 {[%clk 0:00:12.8]} 33. Ne2 {[%clk 0:00:27.6]} 33...
h5 {[%clk 0:00:12]} 34. Nh2 {[%clk 0:00:23.3]} 34... Nb6 {[%clk 0:00:12]} 35.
Rd3 {[%clk 0:00:20.6]} 35... Qc4 {[%clk 0:00:12]} 36. Rfd1 {[%clk 0:00:20.5]}
36... Rf7 {[%clk 0:00:09.6]} 37. a5 {[%clk 0:00:20.4]} 37... Na4 {[%clk
0:00:09.9]} 38. Ng3 {[%clk 0:00:18.1]} 38... Nb2 {[%clk 0:00:09.6]} 39. Nxh5
{[%clk 0:00:17.4]} 39... gxh5 {[%clk 0:00:08.1]} 40. Qxh5+ {[%clk 0:00:18]}
40... Kg8 {[%clk 0:00:09]} 41. Rd8+ {[%clk 0:00:18.4]} 41... Rf8 {[%clk
0:00:09.7]} 42. Rxf8+ {[%clk 0:00:16.5]} 42... Bxf8 {[%clk 0:00:05.8]} 43. Qg6+
{[%clk 0:00:14.8]} 43... Kh8 {[%clk 0:00:06.4]} 44. Rd7 {[%clk 0:00:11]} 44...
Re7 {[%clk 0:00:03.9]} 45. Qxf6+ {[%clk 0:00:10.9]} 45... Kg8 {[%clk 0:00:04.2]}
46. Rxe7 {[%clk 0:00:08.5]} 46... Bxe7 {[%clk 0:00:04]} 47. Qxe7 {[%clk
0:00:08.8]} 47... Qf7 {[%clk 0:00:04.5]} 48. Qxe5 {[%clk 0:00:06.7]} 48... Nc4
{[%clk 0:00:04.5]} 49. Qg3+ {[%clk 0:00:06.2]} 49... Kf8 {[%clk 0:00:04.9]} 50.
Ng4 {[%clk 0:00:06.7]} 50... Nd2 {[%clk 0:00:03.6]} 51. Qd6+ {[%clk 0:00:06.4]}
51... Ke8 {[%clk 0:00:02.2]} 52. Qxd2 {[%clk 0:00:07.3]} 52... Qb3 {[%clk
0:00:02.3]} 53. Qd5 {[%clk 0:00:06.1]} 53... Qa3 {[%clk 0:00:01.9]} 54. Kh2
{[%clk 0:00:06.3]} 54... Qxc3 {[%clk 0:00:01.6]} 55. Ne5 {[%clk 0:00:05.4]}
55... Qxe3 {[%clk 0:00:01.6]} 56. Qd7+ {[%clk 0:00:05.7]} 1-0